[Event "*** SCC Grand Prix: Titled Tuesday Blitz"]
[Site "Chess.com"]
[Date "2020.08.04"]
[Round "2"]
[White "Andreikka"]
[Black "Fh2411"]
[Result "1-0"]
[WhiteElo "2842"]
[BlackElo "2545"]
[TimeControl "180+1"]
[EndTime "14:03:58 PDT"]
[Termination "Andreikka won on time"]

1. c4 {[%clk 0:03:00.9]} 1... c6 {[%clk 0:02:59.5]} 2. d4 {[%clk 0:02:56]} 2...
d5 {[%clk 0:02:59.5]} 3. Nf3 {[%clk 0:02:56.9]} 3... Nf6 {[%clk 0:03:00.3]} 4.
e3 {[%clk 0:02:53.5]} 4... Bg4 {[%clk 0:03:00]} 5. Qb3 {[%clk 0:02:45.2]} 5...
Qb6 {[%clk 0:02:59.8]} 6. Ne5 {[%clk 0:02:42]} 6... Be6 {[%clk 0:02:50.4]} 7.
Nc3 {[%clk 0:02:36.6]} 7... Qxb3 {[%clk 0:02:34.2]} 8. axb3 {[%clk 0:02:35.8]}
8... Nbd7 {[%clk 0:02:33.3]} 9. Nxd7 {[%clk 0:02:19.1]} 9... Nxd7 {[%clk
0:02:26.8]} 10. e4 {[%clk 0:02:16.5]} 10... dxe4 {[%clk 0:02:19]} 11. Nxe4
{[%clk 0:02:14.8]} 11... Bf5 {[%clk 0:02:18.5]} 12. Ng3 {[%clk 0:02:12]} 12...
Bg6 {[%clk 0:02:08.5]} 13. f4 {[%clk 0:02:12.2]} 13... e6 {[%clk 0:02:08.2]} 14.
Bd2 {[%clk 0:02:11.8]} 14... Be7 {[%clk 0:01:55.9]} 15. Be2 {[%clk 0:02:09.3]}
15... a6 {[%clk 0:01:41.7]} 16. Bc3 {[%clk 0:02:07.9]} 16... Bf6 {[%clk
0:01:36.1]} 17. O-O {[%clk 0:02:04.1]} 17... O-O {[%clk 0:01:32.6]} 18. f5
{[%clk 0:02:00.9]} 18... exf5 {[%clk 0:01:32.2]} 19. Nxf5 {[%clk 0:02:01.8]}
19... Bxf5 {[%clk 0:01:28.2]} 20. Rxf5 {[%clk 0:02:01.3]} 20... Rfe8 {[%clk
0:01:29]} 21. Bd3 {[%clk 0:01:40.3]} 21... Re3 {[%clk 0:01:14]} 22. Rd1 {[%clk
0:01:39.4]} 22... Rae8 {[%clk 0:01:08.6]} 23. Kf2 {[%clk 0:01:39.1]} 23... g6
{[%clk 0:01:05.4]} 24. Rf3 {[%clk 0:01:37.6]} 24... Rxf3+ {[%clk 0:01:01.4]} 25.
Kxf3 {[%clk 0:01:38.5]} 25... Bg5 {[%clk 0:00:59.4]} 26. Re1 {[%clk 0:01:38.4]}
26... Rxe1 {[%clk 0:00:55.8]} 27. Bxe1 {[%clk 0:01:39.3]} 27... f5 {[%clk
0:00:45.6]} 28. g4 {[%clk 0:01:29.9]} 28... fxg4+ {[%clk 0:00:46.5]} 29. Kxg4
{[%clk 0:01:30.8]} 29... Bf6 {[%clk 0:00:42.1]} 30. Bf2 {[%clk 0:01:27.5]} 30...
Kf7 {[%clk 0:00:40.8]} 31. b4 {[%clk 0:01:19.1]} 31... Nf8 {[%clk 0:00:22.2]}
32. c5 {[%clk 0:01:05.3]} 32... Ne6 {[%clk 0:00:19]} 33. Bc4 {[%clk 0:01:05.8]}
33... Ke7 {[%clk 0:00:18.6]} 34. d5 {[%clk 0:01:06.2]} 34... Nd8 {[%clk
0:00:16.2]} 35. d6+ {[%clk 0:00:40.1]} 35... Kd7 {[%clk 0:00:16.4]} 36. Kf3
{[%clk 0:00:40.5]} 36... Bxb2 {[%clk 0:00:15.4]} 37. Be1 {[%clk 0:00:40.9]}
37... Bd4 {[%clk 0:00:15.6]} 38. Bf1 {[%clk 0:00:36.1]} 38... a5 {[%clk
0:00:14.5]} 39. Bh3+ {[%clk 0:00:35.2]} 39... Ne6 {[%clk 0:00:15.1]} 40. Ke4
{[%clk 0:00:35.8]} 40... Bf6 {[%clk 0:00:07.5]} 41. bxa5 {[%clk 0:00:32.4]}
41... h5 {[%clk 0:00:07]} 42. Bb4 {[%clk 0:00:31]} 42... g5 {[%clk 0:00:07.9]}
43. Bf5 {[%clk 0:00:25]} 43... g4 {[%clk 0:00:04.4]} 44. Bd2 {[%clk 0:00:24.7]}
44... Bb2 {[%clk 0:00:02.5]} 45. Be3 {[%clk 0:00:21.1]} 45... Bf6 {[%clk
0:00:03.4]} 46. h3 {[%clk 0:00:13.1]} 46... g3 {[%clk 0:00:03]} 47. h4 {[%clk
0:00:12.9]} 47... Bxh4 {[%clk 0:00:02.9]} 48. Ke5 {[%clk 0:00:13.3]} 48... g2
{[%clk 0:00:03.4]} 49. Bxe6+ {[%clk 0:00:13.7]} 49... Kd8 {[%clk 0:00:04.3]} 50.
Bh3 {[%clk 0:00:13]} 50... Bg3+ {[%clk 0:00:04.3]} 51. Ke6 {[%clk 0:00:13.4]}
51... Be1 {[%clk 0:00:01.8]} 52. Bg5+ {[%clk 0:00:11.5]} 1-0

[Event "*** SCC Grand Prix: Titled Tuesday Blitz"]
[Site "Chess.com"]
[Date "2020.08.04"]
[Round "2"]
[White "Shield12"]
[Black "Zarikovs1999"]
[Result "1-0"]
[WhiteElo "2842"]
[BlackElo "2365"]
[TimeControl "180+1"]
[EndTime "14:03:58 PDT"]
[Termination "Shield12 won by resignation"]

1. e4 {[%clk 0:03:00.9]} 1... c5 {[%clk 0:02:59.9]} 2. Nf3 {[%clk 0:03:00.8]}
2... d6 {[%clk 0:02:59.4]} 3. Bb5+ {[%clk 0:03:01.3]} 3... Nd7 {[%clk
0:02:52.2]} 4. Ba4 {[%clk 0:03:01.1]} 4... Nf6 {[%clk 0:02:50.3]} 5. O-O {[%clk
0:03:01.6]} 5... Nxe4 {[%clk 0:02:50]} 6. Re1 {[%clk 0:03:01.9]} 6... Nf6 {[%clk
0:02:50.5]} 7. d4 {[%clk 0:03:02.5]} 7... cxd4 {[%clk 0:02:50.2]} 8. Nxd4 {[%clk
0:03:03.4]} 8... e6 {[%clk 0:02:20.5]} 9. Nb5 {[%clk 0:03:02.2]} 9... Be7 {[%clk
0:02:15.4]} 10. Nxd6+ {[%clk 0:03:00.8]} 10... Bxd6 {[%clk 0:02:16.3]} 11. Qxd6
{[%clk 0:03:01.3]} 11... a6 {[%clk 0:02:13.3]} 12. c4 {[%clk 0:03:00.5]} 12...
b5 {[%clk 0:02:08.1]} 13. cxb5 {[%clk 0:02:58.4]} 13... Qb6 {[%clk 0:02:08.6]}
14. Bf4 {[%clk 0:02:51.9]} 14... axb5 {[%clk 0:02:06.3]} 15. Qxb6 {[%clk
0:02:51.3]} 15... Nxb6 {[%clk 0:02:07.2]} 16. Bxb5+ {[%clk 0:02:51.9]} 16... Ke7
{[%clk 0:02:06.9]} 17. Nc3 {[%clk 0:02:51]} 17... Nbd5 {[%clk 0:02:05.7]} 18.
Be5 {[%clk 0:02:42]} 18... Rg8 {[%clk 0:02:00.6]} 19. Bc6 {[%clk 0:02:38.1]}
19... Ra5 {[%clk 0:01:57.7]} 20. a3 {[%clk 0:02:33.2]} 20... Bd7 {[%clk
0:01:51.9]} 21. b4 {[%clk 0:02:18.4]} 21... Nxb4 {[%clk 0:01:40.5]} 22. Bxd7
{[%clk 0:02:08.7]} 22... Nxd7 {[%clk 0:01:33.6]} 23. axb4 {[%clk 0:02:01]} 23...
Rxa1 {[%clk 0:01:33]} 24. Rxa1 {[%clk 0:01:56.5]} 24... Nxe5 {[%clk 0:01:33.6]}
25. Ra7+ {[%clk 0:01:56.6]} 25... Kf6 {[%clk 0:01:25.2]} 26. Ne4+ {[%clk
0:01:52.1]} 26... Kg6 {[%clk 0:01:20.6]} 27. Rb7 {[%clk 0:01:28.4]} 27... Rc8
{[%clk 0:01:18.6]} 28. g3 {[%clk 0:01:16.8]} 28... Rc4 {[%clk 0:01:07.1]} 29.
Nc5 {[%clk 0:01:09.9]} 29... Rc1+ {[%clk 0:00:53.9]} 30. Kg2 {[%clk 0:01:09.6]}
30... Nc4 {[%clk 0:00:49.1]} 31. Nd3 {[%clk 0:01:05.9]} 31... Rb1 {[%clk
0:00:40.7]} 32. Rc7 {[%clk 0:00:57.9]} 32... Nd6 {[%clk 0:00:32.3]} 33. Rc6
{[%clk 0:00:55.4]} 33... Ne4 {[%clk 0:00:29.6]} 34. f3 {[%clk 0:00:52.9]} 34...
Nd2 {[%clk 0:00:24.6]} 35. Rc2 {[%clk 0:00:51.7]} 35... Nb3 {[%clk 0:00:20.9]}
36. Rc4 {[%clk 0:00:48.2]} 36... Kf6 {[%clk 0:00:16.2]} 37. Kf2 {[%clk
0:00:35.2]} 37... Rd1 {[%clk 0:00:16]} 38. Ke2 {[%clk 0:00:30.3]} 38... Rd2+
{[%clk 0:00:15.1]} 39. Ke3 {[%clk 0:00:30.9]} 39... Rxh2 {[%clk 0:00:15.5]} 40.
Rc3 {[%clk 0:00:25.5]} 40... Nd2 {[%clk 0:00:15.6]} 41. b5 {[%clk 0:00:22.1]}
41... Nf1+ {[%clk 0:00:13.8]} 42. Kd4 {[%clk 0:00:22]} 42... Nxg3 {[%clk
0:00:10]} 43. b6 {[%clk 0:00:22.4]} 43... Ne2+ {[%clk 0:00:09.7]} 44. Kc4 {[%clk
0:00:21.1]} 44... Nxc3 {[%clk 0:00:06.5]} 45. b7 {[%clk 0:00:18]} 45... Nd5
{[%clk 0:00:07]} 46. b8=Q {[%clk 0:00:17.3]} 46... Rc2+ {[%clk 0:00:06.9]} 47.
Kd4 {[%clk 0:00:14.8]} 47... Rg2 {[%clk 0:00:03]} 48. Qe5+ {[%clk 0:00:12.8]}
48... Kg6 {[%clk 0:00:02.4]} 49. Qe4+ {[%clk 0:00:12.5]} 49... Kf6 {[%clk
0:00:02.2]} 50. Qh4+ {[%clk 0:00:11.5]} 50... g5 {[%clk 0:00:01.4]} 51. Qh6+
{[%clk 0:00:11]} 51... Ke7 {[%clk 0:00:01.9]} 52. Qxh7 {[%clk 0:00:10.4]} 52...
Ra2 {[%clk 0:00:02]} 53. Nc5 {[%clk 0:00:08.9]} 53... Rd2+ {[%clk 0:00:01.4]}
54. Kc4 {[%clk 0:00:09.3]} 54... Ne3+ {[%clk 0:00:01.1]} 55. Kb5 {[%clk
0:00:08.9]} 55... Rd1 {[%clk 0:00:02]} 56. Qe4 {[%clk 0:00:08.3]} 56... Rb1+
{[%clk 0:00:02.7]} 57. Qxb1 {[%clk 0:00:08.2]} 57... Nd5 {[%clk 0:00:03.6]} 58.
Qh7 {[%clk 0:00:07.7]} 58... Nc3+ {[%clk 0:00:04.5]} 59. Kc6 {[%clk 0:00:07.5]}
59... Nd5 {[%clk 0:00:05.4]} 60. Ne4 {[%clk 0:00:07.2]} 60... Nb4+ {[%clk
0:00:06.3]} 61. Kc5 {[%clk 0:00:07.4]} 61... Nd5 {[%clk 0:00:07.2]} 62. Nxg5
{[%clk 0:00:07.9]} 62... Ne3 {[%clk 0:00:07.7]} 1-0

[Event "*** SCC Grand Prix: Titled Tuesday Blitz"]
[Site "Chess.com"]
[Date "2020.08.04"]
[Round "2"]
[White "Sam_ChessMood"]
[Black "realmadridtv"]
[Result "1/2-1/2"]
[WhiteElo "2799"]
[BlackElo "2476"]
[TimeControl "180+1"]
[EndTime "14:04:06 PDT"]
[Termination "Game drawn by repetition"]

1. d4 {[%clk 0:03:00.9]} 1... Nf6 {[%clk 0:02:59.8]} 2. Nf3 {[%clk 0:03:01]}
2... g6 {[%clk 0:02:59]} 3. Nbd2 {[%clk 0:02:59.5]} 3... Bg7 {[%clk 0:02:56.1]}
4. e4 {[%clk 0:02:59.3]} 4... d6 {[%clk 0:02:56.5]} 5. Bd3 {[%clk 0:02:53.7]}
5... O-O {[%clk 0:02:56.4]} 6. O-O {[%clk 0:02:53.7]} 6... c5 {[%clk 0:02:56.5]}
7. c3 {[%clk 0:02:39]} 7... cxd4 {[%clk 0:02:55.3]} 8. cxd4 {[%clk 0:02:39.2]}
8... Nc6 {[%clk 0:02:53]} 9. h3 {[%clk 0:02:39.2]} 9... e5 {[%clk 0:02:51.7]}
10. d5 {[%clk 0:02:37.2]} 10... Nd4 {[%clk 0:02:47.1]} 11. Nxd4 {[%clk
0:02:34.5]} 11... exd4 {[%clk 0:02:48]} 12. Nf3 {[%clk 0:02:32]} 12... Qb6
{[%clk 0:02:43.8]} 13. Bd2 {[%clk 0:02:20]} 13... Re8 {[%clk 0:02:43.2]} 14. Re1
{[%clk 0:02:17.8]} 14... Nd7 {[%clk 0:02:39.2]} 15. b4 {[%clk 0:02:16.3]} 15...
Ne5 {[%clk 0:02:36.2]} 16. Nxe5 {[%clk 0:02:16.4]} 16... Bxe5 {[%clk 0:02:30.8]}
17. f4 {[%clk 0:02:11.6]} 17... Bg7 {[%clk 0:02:30.9]} 18. a4 {[%clk 0:02:06.3]}
18... a6 {[%clk 0:02:17.3]} 19. a5 {[%clk 0:02:04.7]} 19... Qd8 {[%clk
0:02:14.8]} 20. Qf3 {[%clk 0:02:01.7]} 20... Bd7 {[%clk 0:02:13.3]} 21. Rac1
{[%clk 0:02:00.6]} 21... Rc8 {[%clk 0:02:13.1]} 22. Rxc8 {[%clk 0:01:58.1]}
22... Qxc8 {[%clk 0:02:11.7]} 23. Rc1 {[%clk 0:01:56.5]} 23... Qb8 {[%clk
0:02:10.7]} 24. Qd1 {[%clk 0:01:43.5]} 24... Rc8 {[%clk 0:02:09.4]} 25. Rxc8+
{[%clk 0:01:42.9]} 25... Qxc8 {[%clk 0:02:10.3]} 26. Qc1 {[%clk 0:01:43.2]}
26... Qd8 {[%clk 0:02:07.8]} 27. Qe1 {[%clk 0:01:37.3]} 27... Qe8 {[%clk
0:02:04.7]} 28. Qe2 {[%clk 0:01:35.1]} 28... f5 {[%clk 0:01:53.2]} 29. Kh2
{[%clk 0:01:27.8]} 29... fxe4 {[%clk 0:01:50.5]} 30. Qxe4 {[%clk 0:01:25.2]}
30... Qf8 {[%clk 0:01:37.2]} 31. Qf3 {[%clk 0:01:24.4]} 31... Qf6 {[%clk
0:01:25.8]} 32. g4 {[%clk 0:01:22.2]} 32... Qf8 {[%clk 0:01:22.4]} 33. Kg2
{[%clk 0:01:20]} 33... Qf7 {[%clk 0:01:15.9]} 34. f5 {[%clk 0:01:10.3]} 34...
gxf5 {[%clk 0:01:13.1]} 35. Bxf5 {[%clk 0:01:10.3]} 35... Bxf5 {[%clk
0:01:08.6]} 36. Qxf5 {[%clk 0:01:10.4]} 36... Qxf5 {[%clk 0:00:50.5]} 37. gxf5
{[%clk 0:01:11.3]} 37... Kf7 {[%clk 0:00:51.2]} 38. Kf3 {[%clk 0:01:11.6]} 38...
Be5 {[%clk 0:00:45.9]} 39. Ke4 {[%clk 0:01:05.9]} 39... Kf6 {[%clk 0:00:40.7]}
40. Bh6 {[%clk 0:00:53.9]} 40... d3 {[%clk 0:00:32.6]} 41. Bd2 {[%clk
0:00:50.9]} 41... Bg3 {[%clk 0:00:16.8]} 42. Bc3+ {[%clk 0:00:49.8]} 42... Kg5
{[%clk 0:00:09.3]} 43. f6 {[%clk 0:00:48.5]} 43... Kg6 {[%clk 0:00:09.5]} 44.
Kxd3 {[%clk 0:00:45]} 44... Bh4 {[%clk 0:00:09.9]} 45. Bd2 {[%clk 0:00:25]}
45... Bxf6 {[%clk 0:00:06.7]} 46. Bf4 {[%clk 0:00:24.9]} 46... Be7 {[%clk
0:00:06.2]} 47. Ke4 {[%clk 0:00:25.2]} 47... Kf6 {[%clk 0:00:06.2]} 48. Be3
{[%clk 0:00:19.4]} 48... Kg6 {[%clk 0:00:06.3]} 49. Bd2 {[%clk 0:00:16.1]} 49...
Bd8 {[%clk 0:00:05.8]} 50. Bf4 {[%clk 0:00:15.6]} 50... Be7 {[%clk 0:00:06.2]}
51. Bh2 {[%clk 0:00:15.3]} 51... Bf8 {[%clk 0:00:06.1]} 52. Kf4 {[%clk
0:00:14.3]} 52... Be7 {[%clk 0:00:06.1]} 53. Kg4 {[%clk 0:00:14.6]} 53... h5+
{[%clk 0:00:05.8]} 54. Kf4 {[%clk 0:00:14.2]} 54... Bf8 {[%clk 0:00:05.8]} 55.
Ke4 {[%clk 0:00:14.6]} 55... Be7 {[%clk 0:00:06]} 56. Bf4 {[%clk 0:00:13.1]}
56... Bf8 {[%clk 0:00:05.8]} 57. Bd2 {[%clk 0:00:11.7]} 57... Be7 {[%clk
0:00:05.9]} 58. Be3 {[%clk 0:00:10.8]} 58... Bf8 {[%clk 0:00:06.2]} 59. Bb6
{[%clk 0:00:10.5]} 59... Be7 {[%clk 0:00:06.2]} 60. Bc7 {[%clk 0:00:10.8]} 60...
Kg5 {[%clk 0:00:04.5]} 61. Bb8 {[%clk 0:00:07.2]} 61... Kg6 {[%clk 0:00:04.7]}
62. Bc7 {[%clk 0:00:06.8]} 62... Kg5 {[%clk 0:00:05.2]} 63. Bb8 {[%clk
0:00:06.9]} 63... Bf8 {[%clk 0:00:05.2]} 64. Bc7 {[%clk 0:00:05.8]} 64... Be7
{[%clk 0:00:05.6]} 1/2-1/2

[Event "*** SCC Grand Prix: Titled Tuesday Blitz"]
[Site "Chess.com"]
[Date "2020.08.04"]
[Round "2"]
[White "Anton_Demchenko"]
[Black "arminmusovic"]
[Result "1-0"]
[WhiteElo "2830"]
[BlackElo "2524"]
[TimeControl "180+1"]
[EndTime "14:04:07 PDT"]
[Termination "Anton_Demchenko won by resignation"]

1. e4 {[%clk 0:03:00.9]} 1... c6 {[%clk 0:02:59.7]} 2. d4 {[%clk 0:02:59.9]}
2... d5 {[%clk 0:03:00.6]} 3. Nd2 {[%clk 0:03:00.6]} 3... dxe4 {[%clk 0:03:01]}
4. Nxe4 {[%clk 0:03:01.5]} 4... Nf6 {[%clk 0:03:01.9]} 5. Ng3 {[%clk 0:03:00.6]}
5... e5 {[%clk 0:03:01.8]} 6. Qe2 {[%clk 0:02:57.2]} 6... Qxd4 {[%clk
0:02:54.2]} 7. Nf3 {[%clk 0:02:38.8]} 7... Qb4+ {[%clk 0:02:45.7]} 8. c3 {[%clk
0:02:37.1]} 8... Qe7 {[%clk 0:02:39.1]} 9. Nxe5 {[%clk 0:02:35.4]} 9... Nbd7
{[%clk 0:02:25.6]} 10. Nc4 {[%clk 0:02:32.6]} 10... Qxe2+ {[%clk 0:02:22.3]} 11.
Bxe2 {[%clk 0:02:33.5]} 11... Nb6 {[%clk 0:02:20]} 12. Na5 {[%clk 0:02:24.1]}
12... Bd6 {[%clk 0:02:14]} 13. O-O {[%clk 0:02:19.8]} 13... O-O {[%clk
0:02:14.1]} 14. Bf3 {[%clk 0:02:14.6]} 14... Bc7 {[%clk 0:02:10.2]} 15. Re1
{[%clk 0:02:12.8]} 15... h6 {[%clk 0:02:05.6]} 16. Nb3 {[%clk 0:01:58.2]} 16...
Re8 {[%clk 0:01:40.9]} 17. Rxe8+ {[%clk 0:01:42.5]} 17... Nxe8 {[%clk
0:01:41.8]} 18. Nc5 {[%clk 0:01:43]} 18... Nc4 {[%clk 0:01:27.2]} 19. Be2 {[%clk
0:01:39]} 19... Ne5 {[%clk 0:01:19.8]} 20. Be3 {[%clk 0:01:34.2]} 20... b6
{[%clk 0:01:05]} 21. Na6 {[%clk 0:01:33.9]} 21... Ng4 {[%clk 0:00:41.1]} 22.
Nxc7 {[%clk 0:01:29.3]} 22... Nxc7 {[%clk 0:00:41.1]} 23. Bd2 {[%clk 0:01:29.9]}
23... Nd5 {[%clk 0:00:38.4]} 24. Re1 {[%clk 0:01:26.6]} 24... Bd7 {[%clk
0:00:34.6]} 25. h3 {[%clk 0:01:22.8]} 25... Ngf6 {[%clk 0:00:32.5]} 26. c4
{[%clk 0:01:17.2]} 26... Nc7 {[%clk 0:00:29.3]} 27. Bf3 {[%clk 0:01:11.8]} 27...
Re8 {[%clk 0:00:29.1]} 28. Kf1 {[%clk 0:01:10.1]} 28... Rxe1+ {[%clk 0:00:28.6]}
29. Kxe1 {[%clk 0:01:11]} 29... Ne6 {[%clk 0:00:29.2]} 30. Bc3 {[%clk
0:01:11.4]} 30... Ne8 {[%clk 0:00:28.7]} 31. Nf5 {[%clk 0:01:06.5]} 31... Kf8
{[%clk 0:00:29.2]} 32. Be4 {[%clk 0:00:49.1]} 32... h5 {[%clk 0:00:28.5]} 33.
Bc2 {[%clk 0:00:46.6]} 33... g6 {[%clk 0:00:28.8]} 34. Ne3 {[%clk 0:00:46.7]}
34... Nf4 {[%clk 0:00:28.9]} 35. h4 {[%clk 0:00:45.7]} 35... Nd6 {[%clk
0:00:27.1]} 36. Be5 {[%clk 0:00:42.9]} 36... Nxg2+ {[%clk 0:00:25]} 37. Nxg2
{[%clk 0:00:42.2]} 37... Nxc4 {[%clk 0:00:25.5]} 38. Bc3 {[%clk 0:00:41.7]}
38... Be6 {[%clk 0:00:25.6]} 39. b3 {[%clk 0:00:39.6]} 39... Nd6 {[%clk
0:00:24.8]} 40. Ne3 {[%clk 0:00:38.9]} 40... Ke7 {[%clk 0:00:23.5]} 41. Ke2
{[%clk 0:00:38]} 41... b5 {[%clk 0:00:21.8]} 42. Bd4 {[%clk 0:00:36.8]} 42... a6
{[%clk 0:00:22.3]} 43. Bc5 {[%clk 0:00:34]} 43... Kd7 {[%clk 0:00:22.8]} 44. Kf3
{[%clk 0:00:33.7]} 44... Nb7 {[%clk 0:00:22.7]} 45. Bf8 {[%clk 0:00:32.4]} 45...
c5 {[%clk 0:00:22.3]} 46. Ke4 {[%clk 0:00:29.8]} 46... Ke8 {[%clk 0:00:20.6]}
47. Bg7 {[%clk 0:00:28.6]} 47... Nd6+ {[%clk 0:00:20.5]} 48. Ke5 {[%clk
0:00:27.7]} 48... Ke7 {[%clk 0:00:20.9]} 49. Bf8+ {[%clk 0:00:26.3]} 49... Kxf8
{[%clk 0:00:20.7]} 50. Kxd6 {[%clk 0:00:27.2]} 50... c4 {[%clk 0:00:20.7]} 51.
bxc4 {[%clk 0:00:23.1]} 51... bxc4 {[%clk 0:00:21.6]} 52. Kc5 {[%clk 0:00:21.6]}
52... c3 {[%clk 0:00:20.8]} 53. a3 {[%clk 0:00:20.3]} 53... g5 {[%clk
0:00:19.6]} 54. hxg5 {[%clk 0:00:20.1]} 54... h4 {[%clk 0:00:20.2]} 55. Kd4
{[%clk 0:00:17.7]} 55... h3 {[%clk 0:00:20.2]} 56. Nf1 {[%clk 0:00:18.1]} 56...
Bd7 {[%clk 0:00:19.7]} 57. Kxc3 {[%clk 0:00:17.7]} 57... Bc6 {[%clk 0:00:19.6]}
58. Kd4 {[%clk 0:00:16.5]} 58... Kg7 {[%clk 0:00:19.1]} 59. f4 {[%clk
0:00:15.3]} 59... f6 {[%clk 0:00:18.9]} 60. Ke3 {[%clk 0:00:13.7]} 60... fxg5
{[%clk 0:00:18.8]} 61. fxg5 {[%clk 0:00:14.6]} 61... Bb5 {[%clk 0:00:19.2]} 62.
Nh2 {[%clk 0:00:14.2]} 62... Bc6 {[%clk 0:00:19.1]} 63. Kf4 {[%clk 0:00:14.7]}
63... Bg2 {[%clk 0:00:18.6]} 64. Bf5 {[%clk 0:00:14.2]} 64... Bc6 {[%clk
0:00:17.9]} 65. Bxh3 {[%clk 0:00:12.4]} 65... a5 {[%clk 0:00:18.8]} 66. Bf5
{[%clk 0:00:12.5]} 66... Be8 {[%clk 0:00:19.7]} 67. Ng4 {[%clk 0:00:12.7]} 67...
Bf7 {[%clk 0:00:20.6]} 68. Ne5 {[%clk 0:00:12.9]} 68... Bg8 {[%clk 0:00:21.5]}
69. Nc6 {[%clk 0:00:12.8]} 69... Bd5 {[%clk 0:00:21.9]} 70. Nxa5 {[%clk
0:00:12.7]} 70... Kf7 {[%clk 0:00:21.6]} 71. Ke5 {[%clk 0:00:12.3]} 71... Ba2
{[%clk 0:00:21.5]} 72. Nc6 {[%clk 0:00:12.5]} 72... Kg7 {[%clk 0:00:20.9]} 73.
Nd4 {[%clk 0:00:13.4]} 73... Bb3 {[%clk 0:00:20.2]} 74. Nxb3 {[%clk 0:00:13]}
1-0

[Event "*** SCC Grand Prix: Titled Tuesday Blitz"]
[Site "Chess.com"]
[Date "2020.08.04"]
[Round "2"]
[White "German_Bazeev"]
[Black "mapleaff"]
[Result "1-0"]
[WhiteElo "2730"]
[BlackElo "2356"]
[TimeControl "180+1"]
[EndTime "14:04:13 PDT"]
[Termination "German_Bazeev won by checkmate"]

1. d4 {[%clk 0:03:00.9]} 1... Nf6 {[%clk 0:02:58]} 2. c4 {[%clk 0:03:01]} 2...
e6 {[%clk 0:02:58.1]} 3. Nc3 {[%clk 0:03:01]} 3... d5 {[%clk 0:02:57.8]} 4. Nf3
{[%clk 0:03:00.9]} 4... Be7 {[%clk 0:02:57.2]} 5. Bg5 {[%clk 0:03:00]} 5... h6
{[%clk 0:02:57.1]} 6. Bf4 {[%clk 0:03:00]} 6... O-O {[%clk 0:02:56.4]} 7. e3
{[%clk 0:03:00.3]} 7... c5 {[%clk 0:02:55.2]} 8. dxc5 {[%clk 0:03:00.4]} 8...
Bxc5 {[%clk 0:02:55]} 9. cxd5 {[%clk 0:03:00.6]} 9... Nxd5 {[%clk 0:02:52.7]}
10. Nxd5 {[%clk 0:03:00.6]} 10... exd5 {[%clk 0:02:52.7]} 11. Bd3 {[%clk
0:02:53]} 11... Bb4+ {[%clk 0:02:48.8]} 12. Nd2 {[%clk 0:02:51.9]} 12... d4
{[%clk 0:02:48.9]} 13. e4 {[%clk 0:02:48.9]} 13... Nc6 {[%clk 0:02:43]} 14. O-O
{[%clk 0:02:47.2]} 14... Bd6 {[%clk 0:02:37.5]} 15. Bg3 {[%clk 0:02:43.9]} 15...
Bxg3 {[%clk 0:02:32.8]} 16. hxg3 {[%clk 0:02:44.8]} 16... Ne5 {[%clk 0:02:24.5]}
17. Nc4 {[%clk 0:01:57.9]} 17... Nxc4 {[%clk 0:02:03]} 18. Bxc4 {[%clk
0:01:57.5]} 18... Qb6 {[%clk 0:02:03.8]} 19. Qb3 {[%clk 0:01:54.6]} 19... Qxb3
{[%clk 0:02:01.3]} 20. axb3 {[%clk 0:01:52.3]} 20... Be6 {[%clk 0:01:59]} 21.
Rfd1 {[%clk 0:01:45.3]} 21... Rfd8 {[%clk 0:01:58]} 22. f3 {[%clk 0:01:39]}
22... a6 {[%clk 0:01:55]} 23. Kf2 {[%clk 0:01:33.6]} 23... Rac8 {[%clk
0:01:54.8]} 24. Rac1 {[%clk 0:01:31.5]} 24... Bxc4 {[%clk 0:01:47.1]} 25. Rxc4
{[%clk 0:01:31.1]} 25... Rxc4 {[%clk 0:01:46.9]} 26. bxc4 {[%clk 0:01:32]} 26...
Kf8 {[%clk 0:01:45.7]} 27. Ke2 {[%clk 0:01:31.5]} 27... Ke7 {[%clk 0:01:44]} 28.
Kd3 {[%clk 0:01:29.3]} 28... Kd6 {[%clk 0:01:43.6]} 29. Ra1 {[%clk 0:01:28.9]}
29... Kc5 {[%clk 0:01:41.4]} 30. Ra4 {[%clk 0:01:24.1]} 30... g6 {[%clk
0:01:21]} 31. b4+ {[%clk 0:01:22.5]} 31... Kc6 {[%clk 0:01:21.1]} 32. Ra5 {[%clk
0:01:23]} 32... f5 {[%clk 0:01:16.5]} 33. exf5 {[%clk 0:01:21.6]} 33... gxf5
{[%clk 0:01:15.5]} 34. Rxf5 {[%clk 0:01:22.5]} 34... b5 {[%clk 0:01:13.7]} 35.
Rf6+ {[%clk 0:01:20.8]} 35... Kb7 {[%clk 0:01:13.6]} 36. cxb5 {[%clk 0:01:20.2]}
36... axb5 {[%clk 0:01:14.1]} 37. Rxh6 {[%clk 0:01:20.8]} 37... Rc8 {[%clk
0:01:14.5]} 38. Kxd4 {[%clk 0:00:59.4]} 38... Rc4+ {[%clk 0:01:13.6]} 39. Kd5
{[%clk 0:01:00]} 39... Rxb4 {[%clk 0:01:14.4]} 40. Rh4 {[%clk 0:01:00.6]} 40...
Rb2 {[%clk 0:01:13.5]} 41. Kc5 {[%clk 0:00:54.7]} 41... Rxg2 {[%clk 0:01:11.3]}
42. Rg4 {[%clk 0:00:52.5]} 42... Ka6 {[%clk 0:01:10]} 43. Rg8 {[%clk 0:00:46.8]}
43... Rc2+ {[%clk 0:01:07.7]} 44. Kb4 {[%clk 0:00:34.2]} 44... Rc4+ {[%clk
0:01:07.1]} 45. Kb3 {[%clk 0:00:33.6]} 45... Rd4 {[%clk 0:01:07.7]} 46. f4
{[%clk 0:00:29]} 46... Rd3+ {[%clk 0:01:03.9]} 47. Kc2 {[%clk 0:00:27.5]} 47...
Rf3 {[%clk 0:01:02.4]} 48. Kd2 {[%clk 0:00:25.4]} 48... b4 {[%clk 0:01:00.9]}
49. Ke2 {[%clk 0:00:25.9]} 49... Rc3 {[%clk 0:00:59.6]} 50. g4 {[%clk
0:00:20.4]} 50... b3 {[%clk 0:00:59.1]} 51. Rb8 {[%clk 0:00:20.1]} 51... Rg3
{[%clk 0:00:56.2]} 52. g5 {[%clk 0:00:19.6]} 52... b2 {[%clk 0:00:55.3]} 53. Kf2
{[%clk 0:00:17.9]} 53... Rg4 {[%clk 0:00:44.5]} 54. Kf3 {[%clk 0:00:14.7]} 54...
Rg1 {[%clk 0:00:42.6]} 55. Rxb2 {[%clk 0:00:13.6]} 55... Rf1+ {[%clk 0:00:43.4]}
56. Ke4 {[%clk 0:00:13.4]} 56... Rg1 {[%clk 0:00:43.8]} 57. Kf5 {[%clk
0:00:13.4]} 57... Ka7 {[%clk 0:00:44.3]} 58. g6 {[%clk 0:00:13.4]} 58... Ka8
{[%clk 0:00:44.7]} 59. Kf6 {[%clk 0:00:13.4]} 59... Rc1 {[%clk 0:00:44.7]} 60.
f5 {[%clk 0:00:13.3]} 60... Rc6+ {[%clk 0:00:45.5]} 61. Kg5 {[%clk 0:00:13.5]}
61... Rc7 {[%clk 0:00:44.2]} 62. f6 {[%clk 0:00:13.6]} 62... Rc5+ {[%clk
0:00:44.1]} 63. Kh6 {[%clk 0:00:13.1]} 63... Rc6 {[%clk 0:00:44.1]} 64. f7
{[%clk 0:00:12.6]} 64... Rc8 {[%clk 0:00:43]} 65. Kg7 {[%clk 0:00:12.2]} 65...
Rd8 {[%clk 0:00:40.8]} 66. f8=Q {[%clk 0:00:11.7]} 66... Rxf8 {[%clk 0:00:39]}
67. Kxf8 {[%clk 0:00:12.6]} 67... Ka7 {[%clk 0:00:39.5]} 68. g7 {[%clk 0:00:13]}
68... Ka8 {[%clk 0:00:40.4]} 69. g8=Q {[%clk 0:00:13.9]} 69... Ka7 {[%clk
0:00:38.3]} 70. Qa2# {[%clk 0:00:14.8]} 1-0